[Event "Titled Tuesday Blitz July 05 Late 2022"]
[White "Fishbein, Alexander"]
[Black "Jaskolka, Tomasz"]
[WhiteFideId "2000377"]
[BlackFideId "1170791"]
[WhiteElo "2410"]
[BlackElo "2073"]
[Result "1-0"]
[Round "08"]
[TimeControl "180+1"]
[Date "2022.07.06"]
[WhiteClock "0:00:18"]
[BlackClock "0:00:09"]

1. e4 {[%clk 0:02:59]}  c5 {[%clk 0:02:59]} 2. Nf3 {[%clk 0:02:58]}  e6 {[%clk 0:02:59]} 3. d4 {[%clk 0:02:57]}  cxd4 {[%clk 0:03:00]} 4. Nxd4 {[%clk 0:02:56]}  Nc6 {[%clk 0:03:01]} 5. Nc3 {[%clk 0:02:56]}  Qc7 {[%clk 0:03:01]} 6. g3 {[%clk 0:02:55]}  a6 {[%clk 0:03:01]} 7. Bg2 {[%clk 0:02:55]}  Nf6 {[%clk 0:03:01]} 8. O-O {[%clk 0:02:54]}  Nxd4 {[%clk 0:03:02]} 9. Qxd4 {[%clk 0:02:53]}  Bc5 {[%clk 0:03:03]} 10. Bf4 {[%clk 0:02:53]}  d6 {[%clk 0:03:03]} 11. Qd2 {[%clk 0:02:53]}  h6 {[%clk 0:03:02]} 12. Rad1 {[%clk 0:02:52]}  e5 {[%clk 0:03:02]} 13. Be3 {[%clk 0:02:50]}  Bb4 {[%clk 0:03:03]} 14. Nb5 {[%clk 0:02:48]}  axb5 {[%clk 0:03:01]} 15. Qxb4 {[%clk 0:02:45]}  Rxa2 {[%clk 0:03:01]} 16. Rxd6 {[%clk 0:02:34]}  O-O {[%clk 0:03:01]} 17. Rd2 {[%clk 0:02:29]}  Be6 {[%clk 0:03:00]} 18. Rfd1 {[%clk 0:02:21]}  Qc4 {[%clk 0:02:47]} 19. Qxc4 {[%clk 0:02:17]}  bxc4 {[%clk 0:02:44]} 20. c3 {[%clk 0:02:06]}  Rfa8 {[%clk 0:02:18]} 21. Bc5 {[%clk 0:02:03]}  Ra1 {[%clk 0:02:17]} 22. f3 {[%clk 0:01:58]}  R8a2 {[%clk 0:02:13]} 23. Rxa1 {[%clk 0:01:54]}  Rxa1+ {[%clk 0:02:14]} 24. Kf2 {[%clk 0:01:54]}  Nd7 {[%clk 0:02:14]} 25. Ba3 {[%clk 0:01:49]}  f6 {[%clk 0:02:10]} 26. Bf1 {[%clk 0:01:47]}  b5 {[%clk 0:02:02]} 27. f4 {[%clk 0:01:40]}  exf4 {[%clk 0:01:50]} 28. gxf4 {[%clk 0:01:37]}  f5 {[%clk 0:01:27]} 29. exf5 {[%clk 0:01:36]}  Bxf5 {[%clk 0:01:26]} 30. Rd5 {[%clk 0:01:36]}  Be6 {[%clk 0:01:23]} 31. Rxb5 {[%clk 0:01:34]}  Nf6 {[%clk 0:01:22]} 32. Rb8+ {[%clk 0:01:27]}  Kf7 {[%clk 0:01:20]} 33. Rb7+ {[%clk 0:01:26]}  Kg6 {[%clk 0:01:17]} 34. Rb6 {[%clk 0:01:25]}  Bd5 {[%clk 0:00:55]} 35. Be2 {[%clk 0:01:13]}  Kf5 {[%clk 0:00:52]} 36. Ke3 {[%clk 0:01:07]}  Bf7 {[%clk 0:00:27]} 37. Kd4 {[%clk 0:00:53]}  Re1 {[%clk 0:00:23]} 38. Bf3 {[%clk 0:00:50]}  Kxf4 {[%clk 0:00:21]} 39. Bc6 {[%clk 0:00:46]}  Rd1+ {[%clk 0:00:19]} 40. Kc5 {[%clk 0:00:45]}  Bd5 {[%clk 0:00:12]} 41. Bb5 {[%clk 0:00:40]}  Bf7 {[%clk 0:00:10]} 42. Rb7 {[%clk 0:00:36]}  Rd5+ {[%clk 0:00:10]} 43. Kb4 {[%clk 0:00:33]}  Be6 {[%clk 0:00:07]} 44. Bxc4 {[%clk 0:00:32]}  Re5 {[%clk 0:00:07]} 45. Bxe6 {[%clk 0:00:29]}  Rxe6 {[%clk 0:00:08]} 46. c4 {[%clk 0:00:28]}  g5 {[%clk 0:00:07]} 47. b3 {[%clk 0:00:24]}  Re2 {[%clk 0:00:07]} 48. Rf7 {[%clk 0:00:21]}  Ke5 {[%clk 0:00:06]} 49. Re7+ {[%clk 0:00:19]}  Kf4 {[%clk 0:00:06]} 50. Rxe2 {[%clk 0:00:20]}  g4 {[%clk 0:00:06]} 51. Re6 {[%clk 0:00:19]}  Ne4 {[%clk 0:00:06]} 52. Rxe4+ {[%clk 0:00:19]}  Kxe4 {[%clk 0:00:07]} 53. Kc3 {[%clk 0:00:19]}  h5 {[%clk 0:00:07]} 54. Bd6 {[%clk 0:00:19]}  h4 {[%clk 0:00:04]} 55. b4 {[%clk 0:00:19]}  Kf3 {[%clk 0:00:03]} 56. b5 {[%clk 0:00:18]}  g3 {[%clk 0:00:04]} 57. hxg3 {[%clk 0:00:18]}  h3 {[%clk 0:00:05]} 58. g4 {[%clk 0:00:19]}  Kxg4 {[%clk 0:00:05]} 59. b6 {[%clk 0:00:19]}  Kf5 {[%clk 0:00:05]} 60. Bh2 {[%clk 0:00:18]}  Ke6 {[%clk 0:00:05]} 61. b7 {[%clk 0:00:19]}  Kd7 {[%clk 0:00:06]} 62. b8=Q {[%clk 0:00:19]}  Kc6 {[%clk 0:00:07]} 63. Qd6+ {[%clk 0:00:18]}  Kb7 {[%clk 0:00:07]} 64. Kb4 {[%clk 0:00:18]}  Ka8 {[%clk 0:00:07]} 65. Kb5 {[%clk 0:00:18]}  Kb7 {[%clk 0:00:08]} 66. Qd7+ {[%clk 0:00:18]}  Ka8 {[%clk 0:00:08]} 67. Qc6+ {[%clk 0:00:18]}  Ka7 {[%clk 0:00:09]} 68. Qa6# {[%clk 0:00:18]} 1-0


[Site "https://www.chess.com"]

[Event "Titled Tuesday Blitz July 05 Late 2022"]
[White "Kamsky, Gata"]
[Black "Cardoso Cardoso, Jose Gabriel"]
[WhiteFideId "2000024"]
[BlackFideId "4430492"]
[WhiteElo "2645"]
[BlackElo "2485"]
[Result "1-0"]
[Round "08"]
[TimeControl "180+1"]
[Date "2022.07.05"]
[WhiteClock "0:00:11"]
[BlackClock "0:00:04"]

1. d4 {[%clk 0:03:00]}  d5 {[%clk 0:02:50]} 2. Bf4 {[%clk 0:03:00]}  Nf6 {[%clk 0:02:45]} 3. e3 {[%clk 0:03:00]}  g6 {[%clk 0:02:41]} 4. Nf3 {[%clk 0:02:59]}  Bg7 {[%clk 0:02:41]} 5. Nbd2 {[%clk 0:02:58]}  O-O {[%clk 0:02:40]} 6. c3 {[%clk 0:02:56]}  c5 {[%clk 0:02:40]} 7. h3 {[%clk 0:02:53]}  Nc6 {[%clk 0:02:40]} 8. dxc5 {[%clk 0:02:51]}  b6 {[%clk 0:02:29]} 9. Bb5 {[%clk 0:02:47]}  Bb7 {[%clk 0:02:25]} 10. Qa4 {[%clk 0:02:35]}  Nd7 {[%clk 0:02:15]} 11. cxb6 {[%clk 0:02:06]}  Nc5 {[%clk 0:02:09]} 12. Qc2 {[%clk 0:02:02]}  Qxb6 {[%clk 0:02:09]} 13. a4 {[%clk 0:01:54]}  Ba6 {[%clk 0:01:38]} 14. b4 {[%clk 0:01:42]}  Ne4 {[%clk 0:01:02]} 15. Bxa6 {[%clk 0:01:38]}  Bxc3 {[%clk 0:01:01]} 16. Rb1 {[%clk 0:00:48]}  Nxb4 {[%clk 0:00:55]} 17. Rxb4 {[%clk 0:00:43]}  Qxb4 {[%clk 0:00:51]} 18. Ke2 {[%clk 0:00:40]}  Qa5 {[%clk 0:00:33]} 19. Bb7 {[%clk 0:00:34]}  Rad8 {[%clk 0:00:23]} 20. Nxe4 {[%clk 0:00:32]}  dxe4 {[%clk 0:00:23]} 21. Bxe4 {[%clk 0:00:32]}  e5 {[%clk 0:00:23]} 22. Bh6 {[%clk 0:00:30]}  Rfe8 {[%clk 0:00:22]} 23. Rd1 {[%clk 0:00:28]}  Qa6+ {[%clk 0:00:14]} 24. Bd3 {[%clk 0:00:27]}  Qa5 {[%clk 0:00:08]} 25. Bc4 {[%clk 0:00:27]}  Rxd1 {[%clk 0:00:04]} 26. Qxd1 {[%clk 0:00:26]}  Qb4 {[%clk 0:00:05]} 27. Qb3 {[%clk 0:00:23]}  Qxb3 {[%clk 0:00:03]} 28. Bxb3 {[%clk 0:00:23]}  Rb8 {[%clk 0:00:04]} 29. Bd5 {[%clk 0:00:22]}  Rb2+ {[%clk 0:00:03]} 30. Kd3 {[%clk 0:00:21]}  Ba5 {[%clk 0:00:02]} 31. Nxe5 {[%clk 0:00:20]}  Rxf2 {[%clk 0:00:02]} 32. Bf4 {[%clk 0:00:20]}  Kg7 {[%clk 0:00:02]} 33. Nxf7 {[%clk 0:00:19]}  h6 {[%clk 0:00:02]} 34. Bxh6+ {[%clk 0:00:17]}  Kh7 {[%clk 0:00:02]} 35. Bf4 {[%clk 0:00:17]}  Rd2+ {[%clk 0:00:02]} 36. Ke4 {[%clk 0:00:18]}  Kg7 {[%clk 0:00:02]} 37. Be5+ {[%clk 0:00:16]}  Kf8 {[%clk 0:00:03]} 38. Bd4 {[%clk 0:00:16]}  Bb6 {[%clk 0:00:03]} 39. Ng5 {[%clk 0:00:15]}  Bxd4 {[%clk 0:00:02]} 40. Ne6+ {[%clk 0:00:15]}  Ke7 {[%clk 0:00:02]} 41. Nxd4 {[%clk 0:00:16]}  Rxg2 {[%clk 0:00:03]} 42. Ke5 {[%clk 0:00:15]}  Rg5+ {[%clk 0:00:03]} 43. Ke4 {[%clk 0:00:15]}  Rh5 {[%clk 0:00:03]} 44. Be6 {[%clk 0:00:14]}  Kf6 {[%clk 0:00:03]} 45. Kd3 {[%clk 0:00:14]}  Ra5 {[%clk 0:00:04]} 46. Bd7 {[%clk 0:00:14]}  Rd5 {[%clk 0:00:03]} 47. Bg4 {[%clk 0:00:13]}  Ra5 {[%clk 0:00:03]} 48. Bd1 {[%clk 0:00:14]}  Rg5 {[%clk 0:00:02]} 49. Nc6 {[%clk 0:00:12]}  a6 {[%clk 0:00:02]} 50. Kd4 {[%clk 0:00:11]}  Rg1 {[%clk 0:00:02]} 51. Bg4 {[%clk 0:00:11]}  Rc1 {[%clk 0:00:02]} 52. Kd5 {[%clk 0:00:11]}  Ra1 {[%clk 0:00:01]} 53. a5 {[%clk 0:00:10]}  Ra3 {[%clk 0:00:01]} 54. e4 {[%clk 0:00:10]}  Rd3+ {[%clk 0:00:01]} 55. Kc4 {[%clk 0:00:10]}  Rd1 {[%clk 0:00:02]} 56. e5+ {[%clk 0:00:10]}  Kf7 {[%clk 0:00:02]} 57. e6+ {[%clk 0:00:11]}  Ke8 {[%clk 0:00:03]} 58. Kc5 {[%clk 0:00:11]}  Rb1 {[%clk 0:00:03]} 59. Kd6 {[%clk 0:00:11]}  Rb2 {[%clk 0:00:02]} 60. Kc7 {[%clk 0:00:11]}  Rc2 {[%clk 0:00:02]} 61. e7 {[%clk 0:00:11]}  Ra2 {[%clk 0:00:01]} 62. Bd7+ {[%clk 0:00:11]}  Kf7 {[%clk 0:00:02]} 63. e8=Q+ {[%clk 0:00:11]}  Kf6 {[%clk 0:00:03]} 64. Qe6+ {[%clk 0:00:11]}  Kg5 {[%clk 0:00:04]} 65. Qxa2 {[%clk 0:00:11]} 1-0


[Site "https://www.chess.com"]

[Event "Titled Tuesday Blitz July 05 Late 2022"]
[White "Kovacevic, Radmila"]
[Black "Derraugh, Geordie"]
[WhiteFideId "933171"]
[BlackFideId "2603950"]
[WhiteElo "2157"]
[BlackElo "2116"]
[Result "0-1"]
[Round "08"]
[TimeControl "180+1"]
[Date "2022.07.06"]
[WhiteClock "0:00:02"]
[BlackClock "0:00:24"]

1. e4 {[%clk 0:03:00]}  c5 {[%clk 0:02:57]} 2. Nf3 {[%clk 0:03:00]}  d6 {[%clk 0:02:57]} 3. d4 {[%clk 0:02:59]}  cxd4 {[%clk 0:02:58]} 4. Nxd4 {[%clk 0:02:59]}  Nf6 {[%clk 0:02:57]} 5. Nc3 {[%clk 0:03:00]}  a6 {[%clk 0:02:55]} 6. Rg1 {[%clk 0:03:00]}  h5 {[%clk 0:02:53]} 7. h3 {[%clk 0:02:58]}  h4 {[%clk 0:02:51]} 8. Bg5 {[%clk 0:02:52]}  Qa5 {[%clk 0:02:47]} 9. Qd2 {[%clk 0:02:50]}  Nc6 {[%clk 0:02:44]} 10. Nb3 {[%clk 0:02:47]}  Qb4 {[%clk 0:02:35]} 11. a3 {[%clk 0:02:40]}  Qb6 {[%clk 0:02:35]} 12. Nd5 {[%clk 0:02:21]}  Nxd5 {[%clk 0:02:13]} 13. exd5 {[%clk 0:02:22]}  Ne5 {[%clk 0:02:11]} 14. O-O-O {[%clk 0:02:16]}  Bxh3 {[%clk 0:01:55]} 15. Be3 {[%clk 0:01:48]}  Qc7 {[%clk 0:01:55]} 16. gxh3 {[%clk 0:01:36]}  Nf3 {[%clk 0:01:55]} 17. Qb4 {[%clk 0:01:29]}  Nxg1 {[%clk 0:01:52]} 18. Bb6 {[%clk 0:01:25]}  Qd7 {[%clk 0:01:48]} 19. Nd4 {[%clk 0:01:11]}  Nxh3 {[%clk 0:01:40]} 20. Ne6 {[%clk 0:01:08]}  fxe6 {[%clk 0:01:22]} 21. Bxh3 {[%clk 0:01:07]}  Qb5 {[%clk 0:01:22]} 22. Bxe6 {[%clk 0:00:48]}  Qxb4 {[%clk 0:01:20]} 23. axb4 {[%clk 0:00:48]}  h3 {[%clk 0:01:20]} 24. Rh1 {[%clk 0:00:42]}  h2 {[%clk 0:01:19]} 25. Kd2 {[%clk 0:00:37]}  g6 {[%clk 0:01:16]} 26. Ke2 {[%clk 0:00:34]}  Bg7 {[%clk 0:01:13]} 27. c3 {[%clk 0:00:32]}  Be5 {[%clk 0:01:11]} 28. Ke3 {[%clk 0:00:30]}  g5 {[%clk 0:01:09]} 29. Kf3 {[%clk 0:00:18]}  Rh4 {[%clk 0:01:04]} 30. Kg2 {[%clk 0:00:17]}  Kf8 {[%clk 0:01:02]} 31. Be3 {[%clk 0:00:15]}  Rh7 {[%clk 0:00:41]} 32. Kf3 {[%clk 0:00:10]}  Bf6 {[%clk 0:00:34]} 33. Kg2 {[%clk 0:00:09]}  Be5 {[%clk 0:00:34]} 34. Kf3 {[%clk 0:00:09]}  Kg7 {[%clk 0:00:35]} 35. Bxg5 {[%clk 0:00:08]}  Rf8+ {[%clk 0:00:35]} 36. Ke2 {[%clk 0:00:08]}  Rh5 {[%clk 0:00:34]} 37. Bxe7 {[%clk 0:00:08]}  Rfh8 {[%clk 0:00:29]} 38. Ke3 {[%clk 0:00:04]}  Kg6 {[%clk 0:00:25]} 39. f4 {[%clk 0:00:03]}  Bf6 {[%clk 0:00:25]} 40. Ke4 {[%clk 0:00:02]}  Bxe7 {[%clk 0:00:24]} 0-1


[Site "https://www.chess.com"]

[Event "Titled Tuesday Blitz July 05 Late 2022"]
[White "Krstulovic, Alex"]
[Black "Kosteniuk, Alexandra"]
[WhiteFideId "760056"]
[BlackFideId "4128125"]
[WhiteElo "2244"]
[BlackElo "2469"]
[Result "0-1"]
[Round "08"]
[TimeControl "180+1"]
[Date "2022.07.05"]
[WhiteClock "0:00:01"]
[BlackClock "0:00:43"]

1. e4 {[%clk 0:03:00]}  c6 {[%clk 0:02:59]} 2. d4 {[%clk 0:03:00]}  d5 {[%clk 0:02:59]} 3. e5 {[%clk 0:03:01]}  c5 {[%clk 0:03:00]} 4. dxc5 {[%clk 0:02:59]}  e6 {[%clk 0:03:00]} 5. a3 {[%clk 0:02:56]}  Bxc5 {[%clk 0:02:56]} 6. b4 {[%clk 0:02:56]}  Bb6 {[%clk 0:02:56]} 7. Qg4 {[%clk 0:02:51]}  Ne7 {[%clk 0:02:55]} 8. Nf3 {[%clk 0:02:45]}  Ng6 {[%clk 0:02:51]} 9. h4 {[%clk 0:02:44]}  h5 {[%clk 0:02:45]} 10. Qg3 {[%clk 0:02:41]}  Nc6 {[%clk 0:02:37]} 11. Bd3 {[%clk 0:02:41]}  Nce7 {[%clk 0:02:37]} 12. Bg5 {[%clk 0:02:40]}  Qc7 {[%clk 0:02:34]} 13. Bxe7 {[%clk 0:02:35]}  Nxe7 {[%clk 0:02:34]} 14. Qxg7 {[%clk 0:02:35]}  Rg8 {[%clk 0:02:35]} 15. Qh7 {[%clk 0:02:10]}  Rxg2 {[%clk 0:02:33]} 16. Qh8+ {[%clk 0:02:07]}  Kd7 {[%clk 0:02:01]} 17. Bb5+ {[%clk 0:01:57]}  Nc6 {[%clk 0:02:01]} 18. Qxh5 {[%clk 0:01:41]}  Qd8 {[%clk 0:01:51]} 19. Nc3 {[%clk 0:01:26]}  Qg8 {[%clk 0:01:30]} 20. O-O-O {[%clk 0:01:06]}  Kc7 {[%clk 0:01:30]} 21. Ng5 {[%clk 0:00:42]}  Rxf2 {[%clk 0:01:23]} 22. Bd3 {[%clk 0:00:21]}  Qg7 {[%clk 0:00:51]} 23. Rhe1 {[%clk 0:00:17]}  a5 {[%clk 0:00:49]} 24. Nb5+ {[%clk 0:00:16]}  Kb8 {[%clk 0:00:50]} 25. Nd6 {[%clk 0:00:14]}  Nxe5 {[%clk 0:00:46]} 26. Kb1 {[%clk 0:00:05]}  axb4 {[%clk 0:00:46]} 27. Ne8 {[%clk 0:00:03]}  Qf8 {[%clk 0:00:43]} 28. Rxe5 {[%clk 0:00:01]}  Qxe8 {[%clk 0:00:43]} 0-1


[Site "https://www.chess.com"]

[Event "Titled Tuesday Blitz July 05 Late 2022"]
[White "Lashkin, Jegor"]
[Black "Tanenbaum, Zachary"]
[WhiteFideId "13907808"]
[BlackFideId "2060850"]
[WhiteElo "2368"]
[BlackElo "2175"]
[Result "1-0"]
[Round "08"]
[TimeControl "180+1"]
[Date "2022.07.05"]
[WhiteClock "0:00:32"]
[BlackClock "0:00:35"]

1. d4 {[%clk 0:03:00]}  d5 {[%clk 0:02:59]} 2. c4 {[%clk 0:03:01]}  dxc4 {[%clk 0:03:00]} 3. Nf3 {[%clk 0:03:00]}  a6 {[%clk 0:03:01]} 4. e3 {[%clk 0:03:00]}  Nf6 {[%clk 0:03:01]} 5. Bxc4 {[%clk 0:02:59]}  e6 {[%clk 0:03:01]} 6. O-O {[%clk 0:02:54]}  c5 {[%clk 0:03:02]} 7. b3 {[%clk 0:02:53]}  Nc6 {[%clk 0:03:01]} 8. Bb2 {[%clk 0:02:52]}  cxd4 {[%clk 0:03:02]} 9. Nxd4 {[%clk 0:02:52]}  Bd7 {[%clk 0:03:02]} 10. Nd2 {[%clk 0:02:49]}  Nxd4 {[%clk 0:03:03]} 11. Bxd4 {[%clk 0:02:49]}  Bc6 {[%clk 0:03:04]} 12. Be2 {[%clk 0:02:49]}  Be7 {[%clk 0:03:02]} 13. Bf3 {[%clk 0:02:49]}  Bxf3 {[%clk 0:02:58]} 14. Qxf3 {[%clk 0:02:33]}  Qd5 {[%clk 0:02:58]} 15. Rac1 {[%clk 0:02:20]}  Qxf3 {[%clk 0:02:56]} 16. Nxf3 {[%clk 0:02:19]}  Bd6 {[%clk 0:02:53]} 17. Rfd1 {[%clk 0:02:16]}  Ke7 {[%clk 0:02:52]} 18. Kf1 {[%clk 0:02:13]}  Rac8 {[%clk 0:02:52]} 19. Ke2 {[%clk 0:02:10]}  Ba3 {[%clk 0:02:50]} 20. Rxc8 {[%clk 0:02:06]}  Rxc8 {[%clk 0:02:51]} 21. Ne1 {[%clk 0:01:52]}  Bb4 {[%clk 0:02:42]} 22. Bb2 {[%clk 0:01:29]}  Bxe1 {[%clk 0:02:29]} 23. Kxe1 {[%clk 0:01:28]}  Rc2 {[%clk 0:02:06]} 24. Rd2 {[%clk 0:01:27]}  Rxd2 {[%clk 0:02:06]} 25. Kxd2 {[%clk 0:01:28]}  g6 {[%clk 0:02:04]} 26. f3 {[%clk 0:01:28]}  Nd7 {[%clk 0:01:59]} 27. e4 {[%clk 0:01:27]}  e5 {[%clk 0:02:00]} 28. Kd3 {[%clk 0:01:22]}  b5 {[%clk 0:01:59]} 29. Ba3+ {[%clk 0:01:21]}  Kd8 {[%clk 0:01:58]} 30. Bd6 {[%clk 0:01:20]}  Kc8 {[%clk 0:01:58]} 31. g3 {[%clk 0:01:14]}  Kb7 {[%clk 0:01:58]} 32. f4 {[%clk 0:01:14]}  f6 {[%clk 0:01:57]} 33. Be7 {[%clk 0:01:09]}  Kc6 {[%clk 0:01:54]} 34. Ke3 {[%clk 0:01:06]}  h5 {[%clk 0:01:54]} 35. h4 {[%clk 0:00:56]}  Kc7 {[%clk 0:01:43]} 36. f5 {[%clk 0:00:56]}  gxf5 {[%clk 0:01:41]} 37. exf5 {[%clk 0:00:56]}  Nb6 {[%clk 0:01:39]} 38. Ke4 {[%clk 0:00:56]}  Nd7 {[%clk 0:01:35]} 39. Kd5 {[%clk 0:00:48]}  Nb6+ {[%clk 0:01:30]} 40. Ke6 {[%clk 0:00:46]}  e4 {[%clk 0:01:30]} 41. Bxf6 {[%clk 0:00:45]}  e3 {[%clk 0:01:30]} 42. Bc3 {[%clk 0:00:42]}  e2 {[%clk 0:01:23]} 43. f6 {[%clk 0:00:39]}  Nd7 {[%clk 0:01:22]} 44. f7 {[%clk 0:00:36]}  Nf8+ {[%clk 0:01:06]} 45. Ke7 {[%clk 0:00:34]}  Ng6+ {[%clk 0:01:06]} 46. Ke8 {[%clk 0:00:34]}  Kd6 {[%clk 0:01:05]} 47. f8=Q+ {[%clk 0:00:34]}  Nxf8 {[%clk 0:01:05]} 48. Kxf8 {[%clk 0:00:34]}  Ke6 {[%clk 0:01:06]} 49. Be1 {[%clk 0:00:32]}  Kf6 {[%clk 0:01:06]} 50. a4 {[%clk 0:00:31]}  bxa4 {[%clk 0:01:05]} 51. bxa4 {[%clk 0:00:32]}  Kf5 {[%clk 0:00:37]} 52. Kf7 {[%clk 0:00:32]}  Kg4 {[%clk 0:00:35]} 53. Kg6 {[%clk 0:00:32]} 1-0


[Site "https://www.chess.com"]

[Event "Titled Tuesday Blitz July 05 Late 2022"]
[White "Leisch, Lukas"]
[Black "Ladopoulos, Dimitrios"]
[WhiteFideId "1632094"]
[BlackFideId "4239580"]
[WhiteElo "2216"]
[BlackElo "2195"]
[Result "0-1"]
[Round "08"]
[TimeControl "180+1"]
[Date "2022.07.06"]
[WhiteClock "0:00:04"]
[BlackClock "0:00:07"]

1. Nf3 {[%clk 0:03:00]}  Nf6 {[%clk 0:02:59]} 2. b3 {[%clk 0:03:00]}  g6 {[%clk 0:02:59]} 3. Bb2 {[%clk 0:03:01]}  Bg7 {[%clk 0:03:00]} 4. e3 {[%clk 0:03:01]}  O-O {[%clk 0:03:01]} 5. Be2 {[%clk 0:03:02]}  c5 {[%clk 0:03:01]} 6. c4 {[%clk 0:03:01]}  Nc6 {[%clk 0:03:01]} 7. O-O {[%clk 0:03:01]}  b6 {[%clk 0:02:59]} 8. d4 {[%clk 0:03:00]}  cxd4 {[%clk 0:02:59]} 9. Nxd4 {[%clk 0:02:59]}  Bb7 {[%clk 0:02:59]} 10. Nd2 {[%clk 0:02:57]}  Rc8 {[%clk 0:02:59]} 11. Rc1 {[%clk 0:02:51]}  d5 {[%clk 0:02:56]} 12. Nxc6 {[%clk 0:02:49]}  Bxc6 {[%clk 0:02:55]} 13. cxd5 {[%clk 0:02:49]}  Bxd5 {[%clk 0:02:43]} 14. Rxc8 {[%clk 0:02:33]}  Qxc8 {[%clk 0:02:44]} 15. Qc1 {[%clk 0:02:27]}  Qb7 {[%clk 0:02:42]} 16. Bf3 {[%clk 0:02:27]}  Rc8 {[%clk 0:02:36]} 17. Qa1 {[%clk 0:02:27]}  Rc2 {[%clk 0:02:32]} 18. Bxd5 {[%clk 0:02:22]}  Qxd5 {[%clk 0:02:26]} 19. Nf3 {[%clk 0:02:14]}  Qa5 {[%clk 0:02:03]} 20. Rd1 {[%clk 0:02:04]}  b5 {[%clk 0:02:02]} 21. Nd4 {[%clk 0:01:55]}  Rc8 {[%clk 0:02:02]} 22. Nf3 {[%clk 0:01:39]}  h6 {[%clk 0:01:56]} 23. h3 {[%clk 0:01:37]}  Qb6 {[%clk 0:01:54]} 24. Bd4 {[%clk 0:01:36]}  Qb7 {[%clk 0:01:51]} 25. Qb2 {[%clk 0:01:35]}  a5 {[%clk 0:01:51]} 26. a3 {[%clk 0:01:34]}  Qe4 {[%clk 0:01:50]} 27. Qd2 {[%clk 0:01:28]}  a4 {[%clk 0:01:47]} 28. bxa4 {[%clk 0:01:28]}  bxa4 {[%clk 0:01:48]} 29. Qb4 {[%clk 0:01:24]}  Qc2 {[%clk 0:01:46]} 30. Rf1 {[%clk 0:01:03]}  e6 {[%clk 0:01:37]} 31. Qb2 {[%clk 0:00:37]}  Qxb2 {[%clk 0:01:31]} 32. Bxb2 {[%clk 0:00:38]}  Rc2 {[%clk 0:01:23]} 33. Rb1 {[%clk 0:00:36]}  Ne4 {[%clk 0:01:21]} 34. Bxg7 {[%clk 0:00:34]}  Kxg7 {[%clk 0:01:21]} 35. Rb4 {[%clk 0:00:24]}  Nc3 {[%clk 0:00:49]} 36. Nd4 {[%clk 0:00:24]}  Ra2 {[%clk 0:00:47]} 37. Rb7 {[%clk 0:00:10]}  Kf6 {[%clk 0:00:43]} 38. Nc6 {[%clk 0:00:10]}  Rxa3 {[%clk 0:00:35]} 39. Nd8 {[%clk 0:00:10]}  Ra1+ {[%clk 0:00:34]} 40. Kh2 {[%clk 0:00:10]}  a3 {[%clk 0:00:30]} 41. f4 {[%clk 0:00:11]}  g5 {[%clk 0:00:30]} 42. Rxf7+ {[%clk 0:00:10]}  Kg6 {[%clk 0:00:30]} 43. g4 {[%clk 0:00:09]}  gxf4 {[%clk 0:00:27]} 44. exf4 {[%clk 0:00:09]}  Rf1 {[%clk 0:00:13]} 45. Kg2 {[%clk 0:00:09]}  a2 {[%clk 0:00:12]} 46. f5+ {[%clk 0:00:03]}  exf5 {[%clk 0:00:12]} 47. gxf5+ {[%clk 0:00:04]}  Kh5 {[%clk 0:00:08]} 48. Kxf1 {[%clk 0:00:01]}  a1=Q+ {[%clk 0:00:07]} 49. Kg2 {[%clk 0:00:02]}  Qb2+ {[%clk 0:00:07]} 50. Kg3 {[%clk 0:00:02]}  Ne2+ {[%clk 0:00:06]} 51. Kf3 {[%clk 0:00:02]}  Nd4+ {[%clk 0:00:06]} 52. Kg3 {[%clk 0:00:02]}  Qc3+ {[%clk 0:00:06]} 53. Kh2 {[%clk 0:00:02]}  Qd2+ {[%clk 0:00:06]} 54. Kh1 {[%clk 0:00:02]}  Qe1+ {[%clk 0:00:05]} 55. Kg2 {[%clk 0:00:03]}  Qe2+ {[%clk 0:00:06]} 56. Kh1 {[%clk 0:00:03]}  Qf3+ {[%clk 0:00:05]} 57. Kg1 {[%clk 0:00:03]}  Ne2+ {[%clk 0:00:05]} 58. Kh2 {[%clk 0:00:04]}  Qg3+ {[%clk 0:00:06]} 59. Kh1 {[%clk 0:00:04]}  Qg1# {[%clk 0:00:07]} 0-1


[Site "https://www.chess.com"]